[Event "EIRCC 2019"]
[Site "Tallinn"]
[Date "2019.12.05"]
[Round "6.20"]
[White "Nestor, Kaarel"]
[Black "Kanep, Meelis"]
[Result "0-1"]
[ECO "A49"]
[WhiteElo "2255"]
[BlackElo "2466"]
[Annotator "ChessBase"]
[PlyCount "74"]
[EventDate "2019.12.05"]
[EventType "swiss"]
[EventCountry "EST"]
[SourceTitle "playchess.com"]
[Source "ChessBase"]
[SourceQuality "1"]
[TimeControl "900+10"]

1. d4 {[%emt 0:01:48]} Nf6 {[%emt 0:00:00]} 2. Nf3 {[%emt 0:00:02]} g6 {[%emt 0:00:00]} 3. g3 {[%emt 0:00:02]} Bg7 {[%emt 0:00:01]} 4. Bg2 {[%emt 0:00:01]} O-O {[%emt 0:00:05]} 5. O-O {[%emt 0:00:01]} c6 {[%emt 0:00:06]} 6. b3 {[%emt 0:00:04]} d5 {[%emt 0:00:24]} 7. Bb2 {[%emt 0:00:02]} a5 {[%emt 0:00:15]} 8. a4 {[%emt 0:00:07]} Bf5 {[%emt 0:00:15]} 9. Nbd2 {[%emt 0:00:21]} Na6 {[%emt 0:00:16]} 10. h3 {[%emt 0:01:39]} Ne4 {[%emt 0:00:27]} 11. g4 {[%emt 0:00:08]} Nxd2 {[%emt 0:00:12]} 12. Nxd2 {[%emt 0:00:21]} Bd7 {[%emt 0:00:18]} 13. c4 {[%emt 0:00:12]} Nb4 {[%emt 0:00:14]} 14. Nf3 {[%emt 0:00:57]} f6 {[%emt 0:01:43]} 15. Bc3 {[%emt 0:00:56]} Be6 {[%emt 0:00:30]} 16. Bxb4 {[%emt 0:00:40]} axb4 {[%emt 0:00:02]} 17. c5 {[%emt 0:00:01]} Bd7 {[%emt 0:00:33]} 18. Qd2 {[%emt 0:00:02]} e5 {[%emt 0:00:27]} 19. Qxb4 {[%emt 0:00:19]} e4 {[%emt 0:00:05]} 20. Ne1 {[%emt 0:00:09]} f5 {[%emt 0:00:12]} 21. gxf5 {[%emt 0:00:06]} Bxf5 {[%emt 0:00:17]} 22. f4 {[%emt 0:00:13]} exf3 {[%emt 0:00:55]} 23. Nxf3 {[%emt 0:00:24]} Qd7 {[%emt 0:00:22]} 24. Kh2 {[%emt 0:00:25]} Qc7+ {[%emt 0:00:04]} 25. Kh1 {[%emt 0:00:45]} Rae8 {[%emt 0:00:09]} 26. Qd2 {[%emt 0:00:25]} Re4 {[%emt 0:00:43]} 27. e3 {[%emt 0:00:17]} Rfe8 {[%emt 0:00:12]} 28. Rae1 {[%emt 0:00:08]} Qg3 {[%emt 0:00:22]} 29. Ng1 {[%emt 0:01:59]} Rxe3 {[%emt 0:00:27]} 30. Rxe3 {[%emt 0:00:00]} Qxe3 {[%emt 0:00:20]} 31. Qb4 {[%emt 0:00:01]} Re7 {[%emt 0:01:54]} 32. Nf3 {[%emt 0:00:15]} Be4 {[%emt 0:00:59]} 33. Qb6 {[%emt 0:00:33]} Rf7 {[%emt 0:00:02]} 34. Re1 {[%emt 0:00:51]} Qf2 {[%emt 0:00:36]} 35. Qd8+ {[%emt 0:00:48]} Rf8 {[%emt 0:00:12]} 36. Qh4 {[%emt 0:00:01]} Rxf3 {[%emt 0:00:40]} 37. Rxe4 {[%emt 0:00:01]} dxe4 {[%emt 0:00:07]} 0-1

[Event "EIRCC 2019"]
[Site "Tallinn"]
[Date "2019.12.05"]
[Round "6.21"]
[White "Loginov, Valery A"]
[Black "Luukkonen, Tommi"]
[Result "1-0"]
[ECO "A37"]
[WhiteElo "2461"]
[BlackElo "2332"]
[Annotator "ChessBase"]
[PlyCount "87"]
[EventDate "2019.12.05"]
[EventType "swiss"]
[EventCountry "EST"]
[SourceTitle "playchess.com"]
[Source "ChessBase"]
[SourceQuality "1"]
[TimeControl "900+10"]

1. Nf3 {[%emt 0:00:00]} c5 {[%emt 0:00:00]} 2. g3 {[%emt 0:00:00]} g6 {[%emt 0:00:00]} 3. Bg2 {[%emt 0:00:02]} Bg7 {[%emt 0:00:00]} 4. c4 {[%emt 0:00:07]} Nc6 {[%emt 0:00:00]} 5. Nc3 {[%emt 0:00:03]} d6 {[%emt 0:00:00]} 6. a3 {[%emt 0:00:04]} e5 {[%emt 0:00:05]} 7. O-O {[%emt 0:00:08]} Nge7 {[%emt 0:00:06]} 8. b4 {[%emt 0:00:08]} e4 {[%emt 0:00:01]} 9. Ng5 {[%emt 0:00:06]} f5 {[%emt 0:00:08]} 10. Bb2 {[%emt 0:00:25]} O-O {[%emt 0:00:33]} 11. d3 {[%emt 0:00:07]} h6 {[%emt 0:00:51]} 12. Nh3 {[%emt 0:00:03]} Ne5 {[%emt 0:00:11]} 13. Nf4 {[%emt 0:00:55]} Kh7 {[%emt 0:00:12]} 14. Qb3 {[%emt 0:00:35]} N7c6 {[%emt 0:00:36]} 15. Ncd5 {[%emt 0:00:19]} exd3 {[%emt 0:00:34]} 16. exd3 {[%emt 0:00:53]} Nd4 {[%emt 0:00:02]} 17. Bxd4 {[%emt 0:00:04]} cxd4 {[%emt 0:00:01]} 18. Rac1 {[%emt 0:00:33]} g5 {[%emt 0:00:19]} 19. Ne2 {[%emt 0:00:05]} f4 {[%emt 0:00:07]} 20. Be4+ {[%emt 0:00:04]} Bf5 {[%emt 0:00:12]} 21. Bxf5+ {[%emt 0:00:18]} Rxf5 {[%emt 0:00:01]} 22. Nxd4 {[%emt 0:00:04]} Qd7 {[%emt 0:00:18]} 23. Nxf5 {[%emt 0:01:12]} Qxf5 {[%emt 0:00:01]} 24. d4 {[%emt 0:00:05]} Nc6 {[%emt 0:01:10]} 25. Rcd1 {[%emt 0:00:59]} Qh3 {[%emt 0:02:03]} 26. Qd3+ Kh8 27. gxf4 {[%emt 0:00:12]} Qh5 {[%emt 0:00:03]} 28. f3 {[%emt 0:02:17]} Nxd4 {[%emt 0:00:45]} 29. f5 {[%emt 0:00:10]} Be5 {[%emt 0:00:15]} 30. Rd2 {[%emt 0:00:15]} Rf8 {[%emt 0:00:10]} 31. Ne7 {[%emt 0:00:19]} Rf7 {[%emt 0:01:29]} 32. Ng6+ Kg7 33. Nxe5 {[%emt 0:00:17]} dxe5 {[%emt 0:00:01]} 34. Qe4 {[%emt 0:00:06]} Kf6 {[%emt 0:01:34]} 35. Rxd4 {[%emt 0:02:06]} exd4 {[%emt 0:00:00]} 36. Re1 {[%emt 0:00:02]} Kg7 {[%emt 0:00:04]} 37. Qxd4+ {[%emt 0:00:02]} Kh7 {[%emt 0:00:06]} 38. Re8 {[%emt 0:00:45]} Rg7 {[%emt 0:01:36]} 39. Qe4 {[%emt 0:00:25]} Qh4 {[%emt 0:00:09]} 40. f6+ {[%emt 0:00:18]} Qxe4 {[%emt 0:00:03]} 41. fxe4 {[%emt 0:00:02]} Rf7 {[%emt 0:00:04]} 42. Re7 {[%emt 0:00:18]} Kg6 {[%emt 0:00:01]} 43. Rxf7 {[%emt 0:00:02]} Kxf7 {[%emt 0:00:03]} 44. e5 {[%emt 0:00:02]} 1-0

[Event "EIRCC 2019"]
[Site "Tallinn"]
[Date "2019.12.05"]
[Round "6.22"]
[White "Kozak, Adam"]
[Black "Thorfinnsson, Bragi"]
[Result "1-0"]
[ECO "A06"]
[WhiteElo "2240"]
[BlackElo "2457"]
[Annotator "ChessBase"]
[PlyCount "65"]
[EventDate "2019.12.05"]
[EventType "swiss"]
[EventCountry "EST"]
[SourceTitle "playchess.com"]
[Source "ChessBase"]
[SourceQuality "1"]
[TimeControl "900+10"]

1. Nf3 {[%emt 0:00:00]} d5 {[%emt 0:00:03]} 2. g3 {[%emt 0:00:00]} Nf6 {[%emt 0:00:19]} 3. Bg2 {[%emt 0:00:02]} c6 {[%emt 0:00:15]} 4. O-O {[%emt 0:00:03]} Nbd7 {[%emt 0:00:19]} 5. d4 {[%emt 0:00:47]} e6 {[%emt 0:00:28]} 6. c4 {[%emt 0:00:57]} dxc4 {[%emt 0:00:49]} 7. a4 {[%emt 0:00:01]} a5 {[%emt 0:00:13]} 8. Nc3 {[%emt 0:00:20]} Be7 {[%emt 0:00:39]} 9. e4 {[%emt 0:00:09]} O-O {[%emt 0:00:18]} 10. Qe2 {[%emt 0:00:13]} b6 {[%emt 0:00:52]} 11. Bf4 {[%emt 0:01:40]} Ba6 {[%emt 0:00:12]} 12. Rad1 {[%emt 0:00:01]} Re8 {[%emt 0:01:32]} 13. Qc2 {[%emt 0:01:37]} Bb4 {[%emt 0:02:19]} 14. d5 {[%emt 0:01:35]} cxd5 {[%emt 0:00:13]} 15. exd5 {[%emt 0:00:06]} e5 {[%emt 0:00:45]} 16. Be3 {[%emt 0:00:10]} Nc5 {[%emt 0:00:29]} 17. Bxc5 {[%emt 0:00:51]} Bxc5 {[%emt 0:00:02]} 18. Rfe1 {[%emt 0:00:58]} Qd6 {[%emt 0:00:49]} 19. Ng5 {[%emt 0:02:35]} Bd4 {[%emt 0:00:25]} 20. Nce4 {[%emt 0:00:18]} Nxe4 {[%emt 0:00:10]} 21. Qxe4 {[%emt 0:00:02]} Qg6 {[%emt 0:01:07]} 22. Rxd4 {[%emt 0:00:15]} f5 {[%emt 0:00:14]} 23. Qh4 {[%emt 0:00:01]} exd4 {[%emt 0:00:13]} 24. Re6 {[%emt 0:00:01]} Rxe6 {[%emt 0:00:54]} 25. dxe6 {[%emt 0:00:02]} Re8 {[%emt 0:02:00]} 26. Bd5 {[%emt 0:00:04]} Re7 {[%emt 0:00:56]} 27. Nxh7 {[%emt 0:00:03]} Rxe6 {[%emt 0:00:33]} 28. Ng5 {[%emt 0:01:10]} Bc8 {[%emt 0:00:00]} 29. Bxc4 {[%emt 0:00:01]} f4 {[%emt 0:00:27]} 30. Qxf4 {[%emt 0:01:03]} Qb1+ {[%emt 0:00:19]} 31. Kg2 {[%emt 0:00:09]} Qc2 {[%emt 0:00:35]} 32. Qf7+ {[%emt 0:00:10]} Kh8 {[%emt 0:00:02]} 33. Qf8# {[%emt 0:00:01]} 1-0

[Event "EIRCC 2019"]
[Site "Tallinn"]
[Date "2019.12.05"]
[Round "6.23"]
[White "Ladva, Ottomar"]
[Black "Horvath, Dominik"]
[Result "1-0"]
[ECO "A06"]
[WhiteElo "2446"]
[BlackElo "2306"]
[Annotator "NA"]
[PlyCount "113"]
[EventDate "2019.12.05"]
[EventType "swiss"]
[EventCountry "EST"]
[SourceTitle "playchess.com"]
[Source "ChessBase"]
[SourceQuality "1"]
[TimeControl "900+10"]

1. Nf3 {[%emt 0:01:01]} d5 {[%emt 0:00:00]} 2. g3 {[%emt 0:00:02]} Nc6 {[%emt 0:00:27]} 3. d4 {[%emt 0:00:14]} Bg4 {[%emt 0:00:02]} 4. Bg2 {[%emt 0:00:13]} Qd7 {[%emt 0:00:01]} 5. h3 {[%emt 0:00:09]} Bxf3 {[%emt 0:00:02]} 6. exf3 {[%emt 0:00:05]} e6 {[%emt 0:00:02]} 7. O-O {[%emt 0:00:09]} Nf6 {[%emt 0:00:02]} 8. c3 {[%emt 0:00:34]} Bd6 {[%emt 0:00:01]} 9. Re1 {[%emt 0:00:17]} O-O {[%emt 0:00:11]} 10. f4 {[%emt 0:00:04]} Ne7 {[%emt 0:00:06]} 11. Nd2 {[%emt 0:00:38]} c5 {[%emt 0:00:04]} 12. Nf3 {[%emt 0:00:10]} Rac8 {[%emt 0:00:50]} 13. dxc5 {[%emt 0:00:29]} Bxc5 {[%emt 0:00:03]} 14. Be3 {[%emt 0:01:03]} Bxe3 {[%emt 0:00:28]} 15. Rxe3 {[%emt 0:00:01]} Nf5 {[%emt 0:00:10]} 16. Re2 {[%emt 0:00:34]} Nd6 {[%emt 0:02:35]} 17. Ne5 {[%emt 0:03:04]} Qc7 {[%emt 0:00:01]} 18. Qa4 {[%emt 0:00:30]} Qb6 {[%emt 0:01:07]} 19. Rd1 {[%emt 0:00:22]} Rfd8 {[%emt 0:00:26]} 20. Bf3 {[%emt 0:00:40]} Nfe4 {[%emt 0:00:22]} 21. Kg2 {[%emt 0:00:15]} f6 {[%emt 0:01:38]} 22. Nd3 {[%emt 0:00:27]} Rc4 {[%emt 0:00:57]} 23. Qb3 {[%emt 0:00:19]} Qxb3 {[%emt 0:00:57]} 24. axb3 {[%emt 0:00:02]} Rcc8 {[%emt 0:00:14]} 25. Bg4 {[%emt 0:01:24]} f5 {[%emt 0:01:58]} 26. Bf3 {[%emt 0:00:02]} a5 {[%emt 0:00:05]} 27. Ra1 {[%emt 0:00:56]} Ra8 {[%emt 0:00:48]} 28. Ree1 {[%emt 0:00:34]} Kf7 {[%emt 0:00:23]} 29. Be2 {[%emt 0:00:24]} b6 {[%emt 0:01:33]} 30. Ne5+ {[%emt 0:01:21]} Kf6 {[%emt 0:00:02]} 31. Nc6 {[%emt 0:00:31]} Re8 {[%emt 0:00:54]} 32. h4 {[%emt 0:00:41]} g6 {[%emt 0:00:07]} 33. Bd1 {[%emt 0:00:43]} h6 {[%emt 0:00:51]} 34. Bc2 {[%emt 0:00:26]} g5 {[%emt 0:01:05]} 35. f3 {[%emt 0:00:12]} Nc5 {[%emt 0:00:10]} 36. hxg5+ {[%emt 0:00:03]} hxg5 {[%emt 0:00:01]} 37. fxg5+ {[%emt 0:00:42]} Kxg5 {[%emt 0:00:01]} 38. b4 {[%emt 0:00:44]} Nd7 {[%emt 0:00:53]} 39. bxa5 {[%emt 0:00:03]} bxa5 {[%emt 0:00:01]} 40. Rxa5 Rxa5 {[%emt 0:00:02]} 41. Nxa5 {[%emt 0:00:13]} Kf6 {[%emt 0:00:57]} 42. Nc6 {[%emt 0:00:51]} Rc8 {[%emt 0:00:07]} 43. Nb4 {[%emt 0:00:23]} Nc4 {[%emt 0:00:04]} 44. Nd3 {[%emt 0:00:16]} Rb8 {[%emt 0:00:58]} 45. b3 {[%emt 0:00:13]} Na3 {[%emt 0:00:06]} 46. Bd1 {[%emt 0:00:03]} Rc8 {[%emt 0:00:02]} 47. Nf4 {[%emt 0:00:04]} Ne5 {[%emt 0:00:09]} 48. Nh5+ {[%emt 0:00:07]} Kg6 {[%emt 0:00:05]} 49. Rxe5 {[%emt 0:00:12]} Kxh5 {[%emt 0:00:00]} 50. Rxe6 {[%emt 0:00:18]} f4 {[%emt 0:00:02]} 51. gxf4 {[%emt 0:00:09]} Rxc3 {[%emt 0:00:03]} 52. Re5+ {[%emt 0:00:02]} Kh4 {[%emt 0:00:03]} 53. Rxd5 {[%emt 0:00:04]} Nb1 {[%emt 0:00:10]} 54. Kf2 {[%emt 0:00:26]} Rc1 {[%emt 0:00:10]} 55. Be2 {[%emt 0:00:08]} Rc2 {[%emt 0:00:06]} 56. Rd1 {[%emt 0:00:14]} Nc3 {[%emt 0:00:03]} 57. Rh1# {[%emt 0:00:02]} 1-0

[Event "EIRCC 2019"]
[Site "Tallinn"]
[Date "2019.12.05"]
[Round "6.24"]
[White "Varvadoukas, Theodoros"]
[Black "Cerveny, Martin"]
[Result "1/2-1/2"]
[ECO "A14"]
[WhiteElo "2146"]
[BlackElo "2432"]
[Annotator "NA"]
[PlyCount "156"]
[EventDate "2019.12.05"]
[EventType "swiss"]
[EventCountry "EST"]
[SourceTitle "playchess.com"]
[Source "ChessBase"]
[SourceQuality "1"]
[TimeControl "900+10"]

1. c4 {[%emt 0:03:19]} Nf6 {[%emt 0:00:00]} 2. Nf3 {[%emt 0:00:02]} e6 {[%emt 0:00:00]} 3. g3 {[%emt 0:00:01]} d5 {[%emt 0:00:00]} 4. Bg2 {[%emt 0:00:00]} Be7 {[%emt 0:00:00]} 5. O-O {[%emt 0:00:02]} O-O {[%emt 0:00:02]} 6. d4 {[%emt 0:00:01]} a5 {[%emt 0:00:21]} 7. cxd5 {[%emt 0:00:26]} exd5 {[%emt 0:00:05]} 8. Nc3 {[%emt 0:00:01]} c6 {[%emt 0:00:10]} 9. Qc2 {[%emt 0:00:14]} Na6 {[%emt 0:00:20]} 10. a3 {[%emt 0:00:06]} Nc7 {[%emt 0:00:02]} 11. Bf4 {[%emt 0:01:03]} Bg4 {[%emt 0:00:05]} 12. Ne5 {[%emt 0:00:15]} Bh5 {[%emt 0:00:06]} 13. Qb3 {[%emt 0:00:05]} Qc8 {[%emt 0:00:26]} 14. Rac1 {[%emt 0:00:04]} Ne6 {[%emt 0:01:06]} 15. Be3 {[%emt 0:00:02]} Qb8 {[%emt 0:00:20]} 16. Nd3 {[%emt 0:00:37]} Qa7 {[%emt 0:01:02]} 17. Nf4 {[%emt 0:00:38]} a4 {[%emt 0:00:17]} 18. Qd1 {[%emt 0:00:01]} Nxf4 {[%emt 0:00:27]} 19. Bxf4 {[%emt 0:00:01]} Rfe8 {[%emt 0:00:02]} 20. Re1 {[%emt 0:00:17]} h6 {[%emt 0:00:27]} 21. h3 {[%emt 0:01:36]} Bf8 {[%emt 0:00:05]} 22. Qd2 {[%emt 0:00:18]} Bg6 {[%emt 0:00:05]} 23. f3 {[%emt 0:02:21]} Rad8 {[%emt 0:00:02]} 24. Rcd1 {[%emt 0:00:01]} b5 {[%emt 0:00:27]} 25. Be3 {[%emt 0:00:17]} Bd6 {[%emt 0:00:18]} 26. Bf2 {[%emt 0:00:02]} Qb8 {[%emt 0:00:07]} 27. Kh2 {[%emt 0:00:27]} Nh5 {[%emt 0:00:03]} 28. e4 {[%emt 0:01:04]} Bxg3+ 29. Kg1 Bh2+ {[%emt 0:00:56]} 30. Kh1 {[%emt 0:00:14]} Ng3+ {[%emt 0:00:24]} 31. Bxg3 {[%emt 0:00:02]} Bxg3 {[%emt 0:00:01]} 32. Re2 {[%emt 0:00:00]} Bf4 {[%emt 0:00:06]} 33. Qe1 {[%emt 0:00:01]} f6 {[%emt 0:01:02]} 34. exd5 {[%emt 0:01:00]} cxd5 {[%emt 0:00:14]} 35. Rxe8+ {[%emt 0:00:02]} Rxe8 {[%emt 0:00:02]} 36. Qf1 {[%emt 0:00:01]} Bf7 {[%emt 0:00:44]} 37. Qxb5 {[%emt 0:00:06]} Qxb5 {[%emt 0:00:15]} 38. Nxb5 {[%emt 0:00:01]} Rb8 {[%emt 0:00:01]} 39. Bf1 {[%emt 0:00:01]} Be8 {[%emt 0:00:09]} 40. Nc3 {[%emt 0:00:23]} Rxb2 {[%emt 0:00:53]} 41. Nxd5 {[%emt 0:00:27]} Bd6 {[%emt 0:00:03]} 42. Bc4 {[%emt 0:00:14]} Kh8 {[%emt 0:00:26]} 43. Re1 {[%emt 0:00:24]} Bh5 {[%emt 0:00:12]} 44. Re3 {[%emt 0:00:08]} Rd2 {[%emt 0:01:12]} 45. Bd3 {[%emt 0:00:40]} Ra2 {[%emt 0:01:02]} 46. Bb5 {[%emt 0:01:09]} Rd2 {[%emt 0:00:19]} 47. Bd3 {[%emt 0:00:04]} Bg3 {[%emt 0:01:00]} 48. Be4 {[%emt 0:02:58]} Rxd4 {[%emt 0:00:49]} 49. Rc3 {[%emt 0:00:26]} Kg8 {[%emt 0:00:33]} 50. Ne7+ {[%emt 0:00:25]} Kf7 {[%emt 0:00:05]} 51. Nf5 {[%emt 0:00:01]} Rd1+ {[%emt 0:00:04]} 52. Kg2 {[%emt 0:00:01]} Be5 {[%emt 0:00:05]} 53. Rc4 {[%emt 0:00:05]} Rd2+ {[%emt 0:00:05]} 54. Kf1 {[%emt 0:00:03]} g6 {[%emt 0:02:12]} 55. Nxh6+ {[%emt 0:00:01]} Ke6 {[%emt 0:00:01]} 56. Ng4 {[%emt 0:01:13]} Bd6 {[%emt 0:00:03]} 57. Ne3 {[%emt 0:00:37]} f5 {[%emt 0:00:10]} 58. Bc6 {[%emt 0:00:03]} Rd3 {[%emt 0:00:09]} 59. Ke2 {[%emt 0:00:04]} Rxa3 {[%emt 0:00:14]} 60. Rxa4 {[%emt 0:00:01]} Rxa4 {[%emt 0:00:47]} 61. Bxa4 {[%emt 0:00:01]} Kf6 {[%emt 0:00:01]} 62. Nc4 {[%emt 0:00:08]} Bc5 {[%emt 0:00:04]} 63. Bc6 {[%emt 0:00:05]} Kg5 {[%emt 0:00:04]} 64. Kf1 {[%emt 0:00:02]} Kf4 {[%emt 0:00:05]} 65. Kg2 {[%emt 0:00:01]} g5 {[%emt 0:00:09]} 66. Bd5 {[%emt 0:00:06]} Be8 {[%emt 0:00:04]} 67. Nd2 {[%emt 0:00:13]} Bb4 {[%emt 0:00:22]} 68. Nf1 {[%emt 0:00:01]} Ke5 {[%emt 0:00:01]} 69. Bb7 {[%emt 0:00:02]} f4 {[%emt 0:00:04]} 70. Nh2 {[%emt 0:00:03]} Kd4 {[%emt 0:00:08]} 71. Ng4 {[%emt 0:00:02]} Kd3 {[%emt 0:00:35]} 72. Ba6+ {[%emt 0:00:02]} Kd2 {[%emt 0:00:03]} 73. Bc4 {[%emt 0:00:04]} Bc3 {[%emt 0:00:05]} 74. Ba6 {[%emt 0:00:02]} Bd4 {[%emt 0:00:22]} 75. Bc4 {[%emt 0:00:01]} Kc3 {[%emt 0:00:34]} 76. Ba6 {[%emt 0:00:01]} Bc6 {[%emt 0:00:10]} 77. Be2 {[%emt 0:00:03]} Bb7 {[%emt 0:00:07]} 78. Bb5 {[%emt 0:00:01]} Bd5 1/2-1/2

[Event "EIRCC 2019"]
[Site "Tallinn"]
[Date "2019.12.05"]
[Round "6.25"]
[White "Usmanov, Vasily"]
[Black "Kononenko, Dmitry"]
[Result "1/2-1/2"]
[ECO "A04"]
[WhiteElo "2428"]
[BlackElo "2277"]
[Annotator "NA"]
[PlyCount "96"]
[EventDate "2019.12.05"]
[EventType "swiss"]
[EventCountry "EST"]
[SourceTitle "playchess.com"]
[Source "ChessBase"]
[SourceQuality "1"]
[TimeControl "900+10"]

1. Nf3 {[%emt 0:00:00]} c5 {[%emt 0:00:00]} 2. e3 {[%emt 0:00:00]} Nf6 {[%emt 0:00:00]} 3. b3 {[%emt 0:00:01]} g6 {[%emt 0:00:00]} 4. Bb2 {[%emt 0:00:01]} Bg7 {[%emt 0:00:02]} 5. c4 {[%emt 0:00:43]} O-O {[%emt 0:00:06]} 6. Be2 {[%emt 0:00:13]} Nc6 {[%emt 0:00:21]} 7. O-O {[%emt 0:00:02]} b6 {[%emt 0:01:19]} 8. d4 {[%emt 0:00:26]} cxd4 {[%emt 0:00:01]} 9. Nxd4 {[%emt 0:00:15]} Nxd4 {[%emt 0:00:22]} 10. Qxd4 {[%emt 0:02:06]} Bb7 {[%emt 0:00:24]} 11. Rd1 {[%emt 0:00:02]} d6 {[%emt 0:01:45]} 12. Qh4 {[%emt 0:00:04]} a5 {[%emt 0:00:33]} 13. Nc3 {[%emt 0:00:59]} Nd7 {[%emt 0:02:23]} 14. Rab1 {[%emt 0:02:56]} Re8 {[%emt 0:01:06]} 15. Nd5 {[%emt 0:01:16]} Bxb2 {[%emt 0:00:20]} 16. Rxb2 {[%emt 0:00:01]} Bxd5 {[%emt 0:00:39]} 17. cxd5 {[%emt 0:00:43]} Rc8 {[%emt 0:00:29]} 18. Bb5 {[%emt 0:00:02]} Rf8 {[%emt 0:01:00]} 19. a3 {[%emt 0:00:08]} Rc5 {[%emt 0:02:41]} 20. b4 {[%emt 0:03:00]} Rc3 {[%emt 0:02:05]} 21. Ra2 {[%emt 0:00:55]} Ne5 {[%emt 0:00:36]} 22. Qd4 {[%emt 0:00:06]} Qc7 {[%emt 0:00:30]} 23. f4 {[%emt 0:01:26]} Ng4 {[%emt 0:00:21]} 24. Bc6 {[%emt 0:00:08]} Rb3 {[%emt 0:00:42]} 25. Re1 {[%emt 0:00:59]} b5 {[%emt 0:00:53]} 26. h3 {[%emt 0:01:18]} Nf6 {[%emt 0:00:02]} 27. Bxb5 {[%emt 0:00:21]} axb4 {[%emt 0:00:06]} 28. axb4 {[%emt 0:00:43]} Rb8 {[%emt 0:00:01]} 29. Ra7 {[%emt 0:00:04]} Rb7 {[%emt 0:00:38]} 30. Rea1 {[%emt 0:00:33]} Rxa7 {[%emt 0:00:04]} 31. Rxa7 {[%emt 0:00:25]} Qc1+ {[%emt 0:00:03]} 32. Kh2 {[%emt 0:00:00]} Rxe3 {[%emt 0:00:19]} 33. Ra1 {[%emt 0:00:19]} Qc3 {[%emt 0:00:17]} 34. Qxc3 {[%emt 0:00:02]} Rxc3 {[%emt 0:00:01]} 35. Bc6 {[%emt 0:00:03]} e6 {[%emt 0:00:05]} 36. b5 {[%emt 0:00:10]} Nxd5 {[%emt 0:00:03]} 37. Bxd5 {[%emt 0:00:10]} exd5 {[%emt 0:00:01]} 38. Rb1 {[%emt 0:00:01]} Rc7 {[%emt 0:00:02]} 39. Kg3 {[%emt 0:00:14]} Kf8 {[%emt 0:00:02]} 40. Kf3 {[%emt 0:00:01]} Ke7 {[%emt 0:00:02]} 41. b6 {[%emt 0:00:22]} Rb7 {[%emt 0:00:01]} 42. Ke3 {[%emt 0:00:01]} Kd7 {[%emt 0:00:03]} 43. Kd4 {[%emt 0:00:02]} Kc6 {[%emt 0:00:11]} 44. Rc1+ {[%emt 0:00:02]} Kd7 {[%emt 0:00:16]} 45. Rb1 {[%emt 0:00:02]} Kc6 {[%emt 0:00:08]} 46. Rc1+ {[%emt 0:00:30]} Kd7 {[%emt 0:00:01]} 47. Rb1 {[%emt 0:00:33]} Kc6 {[%emt 0:00:01]} 48. Rc1+ {[%emt 0:00:08]} Kd7 {Ke4} 1/2-1/2

[Event "EIRCC 2019"]
[Site "Tallinn"]
[Date "2019.12.05"]
[Round "6.26"]
[White "Sanz Wawer, Daniel"]
[Black "Mohr, Georg"]
[Result "0-1"]
[ECO "A40"]
[WhiteElo "2103"]
[BlackElo "2424"]
[Annotator "NA"]
[PlyCount "59"]
[EventDate "2019.12.05"]
[EventType "swiss"]
[EventCountry "EST"]
[SourceTitle "playchess.com"]
[Source "ChessBase"]
[SourceQuality "1"]
[TimeControl "900+10"]

1. d4 {[%emt 0:00:00]} g6 {[%emt 0:00:12]} 2. c4 {[%emt 0:00:06]} Bg7 {[%emt 0:00:01]} 3. e4 {[%emt 0:00:14]} d6 {[%emt 0:00:09]} 4. Nc3 {[%emt 0:00:03]} c5 {[%emt 0:00:03]} 5. d5 {[%emt 0:00:22]} e6 {[%emt 0:00:17]} 6. Nge2 {[%emt 0:00:36]} exd5 {[%emt 0:00:15]} 7. cxd5 {[%emt 0:00:03]} Ne7 {[%emt 0:00:09]} 8. Bg5 {[%emt 0:00:47]} h6 {[%emt 0:00:10]} 9. Be3 {[%emt 0:00:08]} a6 {[%emt 0:00:38]} 10. a4 {[%emt 0:00:02]} O-O {[%emt 0:00:39]} 11. Qd2 {[%emt 0:00:03]} Kh7 {[%emt 0:00:01]} 12. h4 {[%emt 0:01:02]} Nd7 {[%emt 0:00:30]} 13. f4 {[%emt 0:01:43]} h5 {[%emt 0:00:29]} 14. g4 {[%emt 0:00:31]} Nf6 {[%emt 0:00:39]} 15. gxh5 {[%emt 0:00:36]} Nxh5 {[%emt 0:00:04]} 16. O-O-O {[%emt 0:01:49]} b5 {[%emt 0:00:50]} 17. f5 {[%emt 0:01:14]} Qa5 {[%emt 0:00:45]} 18. Bg5 {[%emt 0:01:32]} Re8 {[%emt 0:01:30]} 19. f6 {[%emt 0:02:03]} Nxf6 {[%emt 0:00:33]} 20. h5 {[%emt 0:00:02]} Nxh5 {[%emt 0:02:35]} 21. Ng3 {[%emt 0:02:44]} Kg8 {[%emt 0:00:24]} 22. Nxh5 {[%emt 0:00:06]} gxh5 {[%emt 0:00:01]} 23. Bh6 {[%emt 0:01:09]} Bxc3 {[%emt 0:01:40]} 24. bxc3 {[%emt 0:00:09]} Ng6 {[%emt 0:00:06]} 25. Bd3 {[%emt 0:01:38]} Qxa4 {[%emt 0:00:24]} 26. Kb2 {[%emt 0:00:07]} b4 {[%emt 0:00:12]} 27. Ra1 {[%emt 0:00:04]} bxc3+ {[%emt 0:00:05]} 28. Kxc3 {[%emt 0:00:16]} Qd4+ {[%emt 0:00:24]} 29. Kc2 {[%emt 0:00:09]} c4 {[%emt 0:00:08]} 30. Bf1 0-1

[Event "EIRCC 2019"]
[Site "Tallinn"]
[Date "2019.12.05"]
[Round "6.27"]
[White "Aleksandrov, Aleksej"]
[Black "Chibukhchyan, Erik"]
[Result "1-0"]
[ECO "E45"]
[WhiteElo "2576"]
[BlackElo "2211"]
[Annotator "ChessBase"]
[PlyCount "75"]
[EventDate "2019.12.05"]
[EventType "swiss"]
[EventCountry "EST"]
[SourceTitle "playchess.com"]
[Source "ChessBase"]
[SourceQuality "1"]
[TimeControl "900+10"]

1. d4 {[%emt 0:00:00]} Nf6 {[%emt 0:00:00]} 2. c4 {[%emt 0:00:00]} e6 {[%emt 0:00:00]} 3. Nc3 {[%emt 0:00:00]} Bb4 {[%emt 0:00:00]} 4. e3 {[%emt 0:00:00]} b6 {[%emt 0:00:09]} 5. Nge2 {[%emt 0:00:05]} Ba6 {[%emt 0:00:09]} 6. Qa4 {[%emt 0:00:18]} c5 {[%emt 0:00:40]} 7. a3 {[%emt 0:00:01]} Bxc3+ {[%emt 0:00:03]} 8. Nxc3 {[%emt 0:00:02]} O-O {[%emt 0:00:06]} 9. dxc5 {[%emt 0:00:01]} bxc5 {[%emt 0:00:03]} 10. Be2 {[%emt 0:00:02]} d5 {[%emt 0:00:23]} 11. O-O {[%emt 0:00:02]} Qb6 {[%emt 0:00:09]} 12. cxd5 {[%emt 0:00:51]} Bxe2 {[%emt 0:01:36]} 13. Nxe2 {[%emt 0:00:02]} exd5 {[%emt 0:00:03]} 14. b4 {[%emt 0:00:07]} c4 {[%emt 0:00:55]} 15. Bb2 {[%emt 0:00:02]} Nbd7 {[%emt 0:00:03]} 16. Rfd1 {[%emt 0:00:34]} Nc5 {[%emt 0:01:20]} 17. Qc2 {[%emt 0:00:18]} Nd3 {[%emt 0:00:21]} 18. Bd4 {[%emt 0:00:03]} Qe6 {[%emt 0:00:49]} 19. Rab1 {[%emt 0:02:11]} Ng4 {[%emt 0:01:25]} 20. Rf1 {[%emt 0:01:51]} Rfe8 {[%emt 0:02:35]} 21. h3 {[%emt 0:00:30]} Nh6 {[%emt 0:00:02]} 22. Ng3 {[%emt 0:00:29]} Nf5 {[%emt 0:00:27]} 23. Nxf5 {[%emt 0:00:02]} Qxf5 {[%emt 0:00:02]} 24. b5 {[%emt 0:00:11]} Re6 {[%emt 0:00:12]} 25. Kh2 {[%emt 0:03:12]} Rg6 {[%emt 0:00:20]} 26. f4 {[%emt 0:00:03]} h5 {[%emt 0:00:12]} 27. a4 {[%emt 0:00:09]} h4 {[%emt 0:01:39]} 28. a5 {[%emt 0:00:16]} Rg3 {[%emt 0:01:23]} 29. b6 {[%emt 0:00:04]} axb6 {[%emt 0:00:01]} 30. axb6 {[%emt 0:00:01]} Rb8 {[%emt 0:00:03]} 31. Rb5 {[%emt 0:00:58]} Qe4 {[%emt 0:01:00]} 32. b7 {[%emt 0:02:22]} Rxe3 {[%emt 0:01:40]} 33. Bxe3 {[%emt 0:00:02]} Qxe3 {[%emt 0:00:01]} 34. Rxd5 {[%emt 0:00:03]} Qg3+ {[%emt 0:00:19]} 35. Kh1 {[%emt 0:00:04]} Nxf4 {[%emt 0:02:22]} 36. Rc5 {[%emt 0:01:46]} Re8 {[%emt 0:00:17]} 37. Rc8 {[%emt 0:00:08]} Qe3 {[%emt 0:00:06]} 38. b8=Q {[%emt 0:00:09]} 1-0